[Event "Titled Tuesday Blitz March 29 Late 2022"]
[White "Rosen, Eric"]
[Black "Moskalenko, Alexander"]
[WhiteFideId "2032562"]
[BlackFideId "4155351"]
[WhiteElo "2362"]
[BlackElo "2475"]
[Result "0-1"]
[Round "04"]
[TimeControl "180+1"]
[Date "2022.03.30"]
[WhiteClock "0:00:01"]
[BlackClock "0:00:19"]

1. d4 {[%clk 0:02:58]}  d5 {[%clk 0:02:58]} 2. Bf4 {[%clk 0:02:57]}  c5 {[%clk 0:02:57]} 3. e3 {[%clk 0:02:57]}  Nf6 {[%clk 0:02:56]} 4. Nf3 {[%clk 0:02:57]}  Nc6 {[%clk 0:02:57]} 5. Nbd2 {[%clk 0:02:57]}  Nh5 {[%clk 0:02:54]} 6. dxc5 {[%clk 0:02:56]}  Nxf4 {[%clk 0:02:54]} 7. exf4 {[%clk 0:02:57]}  g6 {[%clk 0:02:55]} 8. c3 {[%clk 0:02:57]}  Bg7 {[%clk 0:02:54]} 9. Bd3 {[%clk 0:02:56]}  O-O {[%clk 0:02:54]} 10. O-O {[%clk 0:02:56]}  a5 {[%clk 0:02:52]} 11. a4 {[%clk 0:02:55]}  e6 {[%clk 0:02:51]} 12. Nb3 {[%clk 0:02:51]}  Qc7 {[%clk 0:02:50]} 13. Qd2 {[%clk 0:02:50]}  b6 {[%clk 0:02:49]} 14. cxb6 {[%clk 0:02:47]}  Qxb6 {[%clk 0:02:50]} 15. Bb5 {[%clk 0:02:47]}  Na7 {[%clk 0:02:45]} 16. Nbd4 {[%clk 0:02:39]}  Nxb5 {[%clk 0:02:41]} 17. Nxb5 {[%clk 0:02:39]}  Ba6 {[%clk 0:02:40]} 18. Nfd4 {[%clk 0:02:37]}  Bxd4 {[%clk 0:02:31]} 19. Qxd4 {[%clk 0:02:27]}  Qxd4 {[%clk 0:02:30]} 20. cxd4 {[%clk 0:02:28]}  Bxb5 {[%clk 0:02:31]} 21. axb5 {[%clk 0:02:29]}  Rfb8 {[%clk 0:02:31]} 22. Rfd1 {[%clk 0:01:01]}  Rxb5 {[%clk 0:02:30]} 23. Ra2 {[%clk 0:01:02]}  Rab8 {[%clk 0:02:22]} 24. Kf1 {[%clk 0:00:59]}  Rxb2 {[%clk 0:02:16]} 25. Rxa5 {[%clk 0:00:56]}  Rc2 {[%clk 0:02:17]} 26. Ra3 {[%clk 0:00:51]}  Rbb2 {[%clk 0:02:17]} 27. Rf3 {[%clk 0:00:51]}  Kg7 {[%clk 0:02:17]} 28. g4 {[%clk 0:00:43]}  h6 {[%clk 0:02:09]} 29. Kg2 {[%clk 0:00:39]}  Rd2 {[%clk 0:02:07]} 30. Ra1 {[%clk 0:00:23]}  Rxd4 {[%clk 0:02:06]} 31. Kg3 {[%clk 0:00:23]}  Rbb4 {[%clk 0:01:59]} 32. h3 {[%clk 0:00:23]}  Ra4 {[%clk 0:01:57]} 33. Rb1 {[%clk 0:00:22]}  Rdb4 {[%clk 0:01:57]} 34. Rc1 {[%clk 0:00:23]}  Rb7 {[%clk 0:01:56]} 35. Rc8 {[%clk 0:00:22]}  Rd7 {[%clk 0:01:43]} 36. Rd3 {[%clk 0:00:21]}  g5 {[%clk 0:01:38]} 37. fxg5 {[%clk 0:00:21]}  hxg5 {[%clk 0:01:39]} 38. Rb3 {[%clk 0:00:21]}  d4 {[%clk 0:01:36]} 39. Rd3 {[%clk 0:00:21]}  Ra1 {[%clk 0:01:30]} 40. Kf3 {[%clk 0:00:21]}  Re1 {[%clk 0:01:27]} 41. Rc4 {[%clk 0:00:20]}  e5 {[%clk 0:01:27]} 42. Kg2 {[%clk 0:00:18]}  Re2 {[%clk 0:01:23]} 43. Kf1 {[%clk 0:00:16]}  Ra2 {[%clk 0:01:23]} 44. Kg2 {[%clk 0:00:17]}  Rd6 {[%clk 0:01:22]} 45. Rc5 {[%clk 0:00:17]}  f6 {[%clk 0:01:20]} 46. Rc7+ {[%clk 0:00:16]}  Kg6 {[%clk 0:01:20]} 47. Rc4 {[%clk 0:00:17]}  Kf7 {[%clk 0:01:12]} 48. Kf3 {[%clk 0:00:16]}  Ke6 {[%clk 0:01:12]} 49. Rc5 {[%clk 0:00:15]}  Rda6 {[%clk 0:01:08]} 50. Rc8 {[%clk 0:00:14]}  Rb2 {[%clk 0:01:00]} 51. Re8+ {[%clk 0:00:10]}  Kf7 {[%clk 0:01:00]} 52. Rc8 {[%clk 0:00:05]}  Raa2 {[%clk 0:01:01]} 53. Ke4 {[%clk 0:00:02]}  Rxf2 {[%clk 0:00:59]} 54. Rb3 {[%clk 0:00:03]}  Rfb2 {[%clk 0:00:49]} 55. Rf3 {[%clk 0:00:02]}  Rf2 {[%clk 0:00:44]} 56. Rb3 {[%clk 0:00:02]}  Rae2+ {[%clk 0:00:29]} 57. Kd5 {[%clk 0:00:02]}  Rb2 {[%clk 0:00:30]} 58. Ra3 {[%clk 0:00:02]}  Ra2 {[%clk 0:00:31]} 59. Rb3 {[%clk 0:00:03]}  Rfb2 {[%clk 0:00:31]} 60. Rf3 {[%clk 0:00:03]}  Ra5+ {[%clk 0:00:29]} 61. Kc4 {[%clk 0:00:03]}  Rc2+ {[%clk 0:00:29]} 62. Kb4 {[%clk 0:00:04]}  Rxc8 {[%clk 0:00:29]} 63. Kxa5 {[%clk 0:00:05]}  Rb8 {[%clk 0:00:30]} 64. Ka6 {[%clk 0:00:04]}  Ke6 {[%clk 0:00:30]} 65. h4 {[%clk 0:00:05]}  gxh4 {[%clk 0:00:29]} 66. Rh3 {[%clk 0:00:05]}  e4 {[%clk 0:00:28]} 67. Rxh4 {[%clk 0:00:05]}  d3 {[%clk 0:00:29]} 68. g5 {[%clk 0:00:05]}  f5 {[%clk 0:00:28]} 69. g6 {[%clk 0:00:04]}  Kf6 {[%clk 0:00:28]} 70. Rh5 {[%clk 0:00:04]}  Kxg6 {[%clk 0:00:28]} 71. Rh1 {[%clk 0:00:04]}  Rb2 {[%clk 0:00:27]} 72. Rg1+ {[%clk 0:00:04]}  Kf7 {[%clk 0:00:27]} 73. Rf1 {[%clk 0:00:03]}  Ke6 {[%clk 0:00:28]} 74. Rh1 {[%clk 0:00:02]}  Ke5 {[%clk 0:00:26]} 75. Ka5 {[%clk 0:00:03]}  Rb8 {[%clk 0:00:26]} 76. Ka6 {[%clk 0:00:03]}  Kd4 {[%clk 0:00:26]} 77. Ka7 {[%clk 0:00:02]}  Rf8 {[%clk 0:00:25]} 78. Ra1 {[%clk 0:00:02]}  Ke3 {[%clk 0:00:23]} 79. Rh1 {[%clk 0:00:02]}  f4 {[%clk 0:00:23]} 80. Re1+ {[%clk 0:00:02]}  Kd4 {[%clk 0:00:23]} 81. Ra1 {[%clk 0:00:02]}  f3 {[%clk 0:00:22]} 82. Ra4+ {[%clk 0:00:03]}  Ke3 {[%clk 0:00:23]} 83. Ra3 {[%clk 0:00:03]}  f2 {[%clk 0:00:23]} 84. Kb7 {[%clk 0:00:03]}  Rf7+ {[%clk 0:00:20]} 85. Kb8 {[%clk 0:00:03]}  Rf6 {[%clk 0:00:21]} 86. Rb3 {[%clk 0:00:02]}  Kf3 {[%clk 0:00:21]} 87. Rc3 {[%clk 0:00:02]}  f1=Q {[%clk 0:00:21]} 88. Rc7 {[%clk 0:00:03]}  Qb1+ {[%clk 0:00:19]} 89. Ka7 {[%clk 0:00:02]}  Qa2+ {[%clk 0:00:19]} 90. Kb8 {[%clk 0:00:03]}  Qg8+ {[%clk 0:00:19]} 91. Ka7 {[%clk 0:00:03]}  Rf7 {[%clk 0:00:20]} 92. Rd7 {[%clk 0:00:01]}  Rxd7+ {[%clk 0:00:19]} 0-1


[Site "https://www.chess.com"]

[Event "Titled Tuesday Blitz March 29 Late 2022"]
[White "Rudykh, Stepan"]
[Black "Dounis, Alexandros"]
[WhiteFideId "4180321"]
[BlackFideId "4213238"]
[WhiteElo "2212"]
[BlackElo "2204"]
[Result "0-1"]
[Round "04"]
[TimeControl "180+1"]
[Date "2022.03.30"]
[WhiteClock "0:00:01"]
[BlackClock "0:00:37"]

1. e4 {[%clk 0:03:00]}  e5 {[%clk 0:02:59]} 2. Nf3 {[%clk 0:03:01]}  Nc6 {[%clk 0:02:59]} 3. Bb5 {[%clk 0:03:01]}  a6 {[%clk 0:02:58]} 4. Ba4 {[%clk 0:03:02]}  Nf6 {[%clk 0:02:56]} 5. d4 {[%clk 0:03:02]}  exd4 {[%clk 0:02:54]} 6. O-O {[%clk 0:03:03]}  Be7 {[%clk 0:02:50]} 7. Re1 {[%clk 0:03:02]}  O-O {[%clk 0:02:49]} 8. e5 {[%clk 0:03:00]}  Nd5 {[%clk 0:02:49]} 9. Bb3 {[%clk 0:02:55]}  Nb6 {[%clk 0:02:48]} 10. Nxd4 {[%clk 0:02:55]}  Nxd4 {[%clk 0:02:44]} 11. Qxd4 {[%clk 0:02:56]}  d6 {[%clk 0:02:45]} 12. Bf4 {[%clk 0:02:55]}  dxe5 {[%clk 0:02:42]} 13. Bxe5 {[%clk 0:02:52]}  Qxd4 {[%clk 0:02:40]} 14. Bxd4 {[%clk 0:02:52]}  Bd6 {[%clk 0:02:37]} 15. Nc3 {[%clk 0:02:50]}  c5 {[%clk 0:02:31]} 16. Be3 {[%clk 0:02:47]}  Bf5 {[%clk 0:02:29]} 17. Rad1 {[%clk 0:02:40]}  Rfd8 {[%clk 0:02:27]} 18. h3 {[%clk 0:01:49]}  Rac8 {[%clk 0:02:26]} 19. g4 {[%clk 0:01:45]}  Bg6 {[%clk 0:02:23]} 20. h4 {[%clk 0:01:43]}  h5 {[%clk 0:02:22]} 21. Bg5 {[%clk 0:01:35]}  Rd7 {[%clk 0:02:15]} 22. Nd5 {[%clk 0:01:28]}  Nxd5 {[%clk 0:02:11]} 23. Rxd5 {[%clk 0:01:29]}  c4 {[%clk 0:02:04]} 24. Ba4 {[%clk 0:01:24]}  Bh2+ {[%clk 0:01:57]} 25. Kxh2 {[%clk 0:01:18]}  Rxd5 {[%clk 0:01:58]} 26. c3 {[%clk 0:00:57]}  hxg4 {[%clk 0:01:56]} 27. Bd1 {[%clk 0:00:53]}  Bf5 {[%clk 0:01:50]} 28. Kg3 {[%clk 0:00:52]}  f6 {[%clk 0:01:42]} 29. Be3 {[%clk 0:00:50]}  Re8 {[%clk 0:01:36]} 30. Bxg4 {[%clk 0:00:43]}  Bxg4 {[%clk 0:01:35]} 31. Kxg4 {[%clk 0:00:44]}  Kf7 {[%clk 0:01:30]} 32. h5 {[%clk 0:00:37]}  Ree5 {[%clk 0:01:28]} 33. Rh1 {[%clk 0:00:36]}  b5 {[%clk 0:01:08]} 34. h6 {[%clk 0:00:35]}  gxh6 {[%clk 0:01:08]} 35. Rxh6 {[%clk 0:00:33]}  Kg7 {[%clk 0:01:07]} 36. Rh1 {[%clk 0:00:30]}  a5 {[%clk 0:01:06]} 37. a3 {[%clk 0:00:27]}  Rd3 {[%clk 0:00:57]} 38. Kf4 {[%clk 0:00:20]}  Rg5 {[%clk 0:00:51]} 39. Kf3 {[%clk 0:00:17]}  b4 {[%clk 0:00:47]} 40. axb4 {[%clk 0:00:15]}  axb4 {[%clk 0:00:47]} 41. cxb4 {[%clk 0:00:12]}  Rb5 {[%clk 0:00:47]} 42. Rh4 {[%clk 0:00:09]}  Rxb4 {[%clk 0:00:44]} 43. Re4 {[%clk 0:00:08]}  Rdb3 {[%clk 0:00:38]} 44. Kg4 {[%clk 0:00:02]}  Kg6 {[%clk 0:00:37]} 45. Bd4 {[%clk 0:00:01]}  f5+ {[%clk 0:00:37]} 0-1


[Site "https://www.chess.com"]

[Event "Titled Tuesday Blitz March 29 Late 2022"]
[White "Rytenko, Vsevolod"]
[Black "Piliczewski, Bogusz"]
[WhiteFideId "14133040"]
[BlackFideId "1104144"]
[WhiteElo "2120"]
[BlackElo "1896"]
[Result "1-0"]
[Round "04"]
[TimeControl "180+1"]
[Date "2022.03.30"]
[WhiteClock "0:02:21"]
[BlackClock "0:01:49"]

1. d4 {[%clk 0:03:00]}  d5 {[%clk 0:02:59]} 2. Bg5 {[%clk 0:02:58]}  Bf5 {[%clk 0:02:57]} 3. Nf3 {[%clk 0:02:57]}  Nf6 {[%clk 0:02:55]} 4. Bxf6 {[%clk 0:02:56]}  gxf6 {[%clk 0:02:55]} 5. g3 {[%clk 0:02:57]}  e6 {[%clk 0:02:54]} 6. Bg2 {[%clk 0:02:57]}  c5 {[%clk 0:02:49]} 7. O-O {[%clk 0:02:58]}  Nc6 {[%clk 0:02:41]} 8. c4 {[%clk 0:02:47]}  dxc4 {[%clk 0:02:34]} 9. Qa4 {[%clk 0:02:30]}  cxd4 {[%clk 0:02:20]} 10. Nxd4 {[%clk 0:02:24]}  Qb6 {[%clk 0:01:49]} 11. Nxc6 {[%clk 0:02:21]} 1-0


[Site "https://www.chess.com"]

[Event "Titled Tuesday Blitz March 29 Late 2022"]
[White "Sapunov, Evgeny"]
[Black "Petrovic, Aleksa"]
[WhiteFideId "4126661"]
[BlackFideId "967629"]
[WhiteElo "2470"]
[BlackElo "2245"]
[Result "0-1"]
[Round "04"]
[TimeControl "180+1"]
[Date "2022.03.29"]
[WhiteClock "0:00:40"]
[BlackClock "0:00:18"]

1. c4 {[%clk 0:02:57]}  Nf6 {[%clk 0:02:58]} 2. Nf3 {[%clk 0:02:57]}  e6 {[%clk 0:02:56]} 3. Nc3 {[%clk 0:02:57]}  d5 {[%clk 0:02:54]} 4. d4 {[%clk 0:02:57]}  c6 {[%clk 0:02:48]} 5. Bg5 {[%clk 0:02:57]}  dxc4 {[%clk 0:02:48]} 6. e4 {[%clk 0:02:56]}  b5 {[%clk 0:02:48]} 7. e5 {[%clk 0:02:57]}  h6 {[%clk 0:02:49]} 8. Bh4 {[%clk 0:02:58]}  g5 {[%clk 0:02:49]} 9. Nxg5 {[%clk 0:02:58]}  hxg5 {[%clk 0:02:50]} 10. Bxg5 {[%clk 0:02:59]}  Nbd7 {[%clk 0:02:51]} 11. exf6 {[%clk 0:02:59]}  Bb7 {[%clk 0:02:51]} 12. g3 {[%clk 0:02:59]}  Qb6 {[%clk 0:02:51]} 13. Bg2 {[%clk 0:02:59]}  O-O-O {[%clk 0:02:52]} 14. O-O {[%clk 0:02:59]}  c5 {[%clk 0:02:53]} 15. d5 {[%clk 0:02:59]}  b4 {[%clk 0:02:53]} 16. Na4 {[%clk 0:02:58]}  Qa6 {[%clk 0:02:54]} 17. a3 {[%clk 0:02:59]}  Bxd5 {[%clk 0:02:54]} 18. Bxd5 {[%clk 0:02:48]}  Ne5 {[%clk 0:02:54]} 19. Qe2 {[%clk 0:02:48]}  Rxd5 {[%clk 0:02:47]} 20. axb4 {[%clk 0:02:49]}  cxb4 {[%clk 0:02:48]} 21. Nc3 {[%clk 0:02:46]}  Qd6 {[%clk 0:02:48]} 22. Ne4 {[%clk 0:02:22]}  Qc6 {[%clk 0:01:56]} 23. Rxa7 {[%clk 0:01:46]}  Rd3 {[%clk 0:01:14]} 24. Rfa1 {[%clk 0:01:16]}  Nf3+ {[%clk 0:01:05]} 25. Kg2 {[%clk 0:01:15]}  Rxh2+ {[%clk 0:00:50]} 26. Kf1 {[%clk 0:01:09]}  Rh1+ {[%clk 0:00:51]} 27. Kg2 {[%clk 0:01:08]}  Rxa1 {[%clk 0:00:50]} 28. Rxa1 {[%clk 0:01:07]}  Nxg5 {[%clk 0:00:50]} 29. f3 {[%clk 0:01:04]}  Nxe4 {[%clk 0:00:49]} 30. fxe4 {[%clk 0:01:04]}  Bh6 {[%clk 0:00:47]} 31. Kh3 {[%clk 0:01:01]}  Qc5 {[%clk 0:00:22]} 32. Qg4 {[%clk 0:00:55]}  Qg5 {[%clk 0:00:21]} 33. Rf1 {[%clk 0:00:44]}  Qxg4+ {[%clk 0:00:20]} 34. Kxg4 {[%clk 0:00:45]}  c3 {[%clk 0:00:21]} 35. bxc3 {[%clk 0:00:43]}  bxc3 {[%clk 0:00:22]} 36. Rf2 {[%clk 0:00:42]}  Rd2 {[%clk 0:00:21]} 37. Rf3 {[%clk 0:00:42]}  c2 {[%clk 0:00:20]} 38. Rc3+ {[%clk 0:00:42]}  Kd7 {[%clk 0:00:21]} 39. e5 {[%clk 0:00:41]}  Be3 {[%clk 0:00:18]} 40. Rc4 {[%clk 0:00:40]}  Rd4+ {[%clk 0:00:18]} 0-1


[Site "https://www.chess.com"]

[Event "Titled Tuesday Blitz March 29 Late 2022"]
[White "Sarkar, Justin"]
[Black "Ljukin, Sergei"]
[WhiteFideId "2010011"]
[BlackFideId "14102200"]
[WhiteElo "2038"]
[BlackElo "2312"]
[Result "0-1"]
[Round "04"]
[TimeControl "180+1"]
[Date "2022.03.30"]
[WhiteClock "0:00:01"]
[BlackClock "0:00:08"]

1. d4 {[%clk 0:02:55]}  d5 {[%clk 0:02:59]} 2. c4 {[%clk 0:02:54]}  c6 {[%clk 0:02:59]} 3. Nf3 {[%clk 0:02:53]}  Nf6 {[%clk 0:02:59]} 4. e3 {[%clk 0:02:49]}  e6 {[%clk 0:02:59]} 5. b3 {[%clk 0:02:45]}  Bb4+ {[%clk 0:02:58]} 6. Bd2 {[%clk 0:02:42]}  Bd6 {[%clk 0:02:57]} 7. Bd3 {[%clk 0:02:39]}  Nbd7 {[%clk 0:02:57]} 8. O-O {[%clk 0:02:32]}  O-O {[%clk 0:02:57]} 9. Nc3 {[%clk 0:02:28]}  a6 {[%clk 0:02:48]} 10. c5 {[%clk 0:02:09]}  Bc7 {[%clk 0:02:46]} 11. e4 {[%clk 0:02:02]}  dxe4 {[%clk 0:02:45]} 12. Nxe4 {[%clk 0:02:02]}  Nd5 {[%clk 0:02:45]} 13. b4 {[%clk 0:01:40]}  e5 {[%clk 0:02:44]} 14. Rc1 {[%clk 0:01:07]}  exd4 {[%clk 0:02:37]} 15. Nxd4 {[%clk 0:01:06]}  Ne5 {[%clk 0:02:35]} 16. Bb1 {[%clk 0:01:02]}  Qh4 {[%clk 0:02:23]} 17. Bg5 {[%clk 0:00:44]}  Qg4 {[%clk 0:02:04]} 18. f3 {[%clk 0:00:33]}  Qd7 {[%clk 0:02:00]} 19. Qb3 {[%clk 0:00:14]}  h6 {[%clk 0:01:50]} 20. Bh4 {[%clk 0:00:11]}  a5 {[%clk 0:01:32]} 21. b5 {[%clk 0:00:06]}  a4 {[%clk 0:01:29]} 22. Qb2 {[%clk 0:00:06]}  cxb5 {[%clk 0:01:06]} 23. Nxb5 {[%clk 0:00:05]}  Bb8 {[%clk 0:01:05]} 24. Nbd6 {[%clk 0:00:04]}  Bxd6 {[%clk 0:01:02]} 25. Nxd6 {[%clk 0:00:03]}  Ng6 {[%clk 0:00:59]} 26. Bf2 {[%clk 0:00:04]}  Qe7 {[%clk 0:00:50]} 27. Rcd1 {[%clk 0:00:04]}  Ndf4 {[%clk 0:00:46]} 28. Rfe1 {[%clk 0:00:04]}  Qg5 {[%clk 0:00:46]} 29. Bg3 {[%clk 0:00:02]}  Nh5 {[%clk 0:00:44]} 30. Qd2 {[%clk 0:00:02]}  Ngf4 {[%clk 0:00:41]} 31. Qc2 {[%clk 0:00:01]}  g6 {[%clk 0:00:38]} 32. Ne4 {[%clk 0:00:02]}  Qf5 {[%clk 0:00:34]} 33. Bf2 {[%clk 0:00:01]}  Be6 {[%clk 0:00:20]} 34. Ng3 {[%clk 0:00:01]}  Nxg3 {[%clk 0:00:19]} 35. hxg3 {[%clk 0:00:01]}  Qxc2 {[%clk 0:00:16]} 36. Bxc2 {[%clk 0:00:01]}  Nd5 {[%clk 0:00:16]} 37. a3 {[%clk 0:00:01]}  Rfb8 {[%clk 0:00:14]} 38. Be4 {[%clk 0:00:01]}  Rd8 {[%clk 0:00:13]} 39. Rd4 {[%clk 0:00:01]}  Nf6 {[%clk 0:00:08]} 0-1


[Site "https://www.chess.com"]

[Event "Titled Tuesday Blitz March 29 Late 2022"]
[White "Shimanov, Aleksandr"]
[Black "Arabidze, Meri"]
[WhiteFideId "4198603"]
[BlackFideId "13604040"]
[WhiteElo "2636"]
[BlackElo "2335"]
[Result "1-0"]
[Round "04"]
[TimeControl "180+1"]
[Date "2022.03.29"]
[WhiteClock "0:00:08"]
[BlackClock "0:00:03"]

1. d4 {[%clk 0:03:00]}  f5 {[%clk 0:02:59]} 2. Bg5 {[%clk 0:02:58]}  Nf6 {[%clk 0:02:58]} 3. e3 {[%clk 0:02:56]}  d5 {[%clk 0:02:57]} 4. c4 {[%clk 0:02:53]}  e6 {[%clk 0:02:54]} 5. Nc3 {[%clk 0:02:52]}  c6 {[%clk 0:02:53]} 6. c5 {[%clk 0:02:44]}  Be7 {[%clk 0:02:53]} 7. Bxf6 {[%clk 0:02:43]}  Bxf6 {[%clk 0:02:53]} 8. f4 {[%clk 0:02:44]}  O-O {[%clk 0:02:47]} 9. Nf3 {[%clk 0:02:43]}  b5 {[%clk 0:02:46]} 10. Bd3 {[%clk 0:02:25]}  a5 {[%clk 0:02:46]} 11. a3 {[%clk 0:02:24]}  Ba6 {[%clk 0:02:44]} 12. b4 {[%clk 0:02:23]}  Nd7 {[%clk 0:02:38]} 13. h3 {[%clk 0:02:20]}  Bh4+ {[%clk 0:02:35]} 14. Kd2 {[%clk 0:02:18]}  Be7 {[%clk 0:02:24]} 15. g4 {[%clk 0:02:17]}  g6 {[%clk 0:02:22]} 16. g5 {[%clk 0:02:08]}  Ra7 {[%clk 0:01:51]} 17. h4 {[%clk 0:02:07]}  Kg7 {[%clk 0:01:41]} 18. h5 {[%clk 0:02:06]}  Rh8 {[%clk 0:01:41]} 19. Qc2 {[%clk 0:01:54]}  Bc8 {[%clk 0:01:36]} 20. Rh3 {[%clk 0:01:51]}  axb4 {[%clk 0:01:33]} 21. Ne2 {[%clk 0:01:38]}  Rxa3 {[%clk 0:01:30]} 22. Rxa3 {[%clk 0:01:29]}  bxa3 {[%clk 0:01:31]} 23. Qc3 {[%clk 0:01:30]}  a2 {[%clk 0:01:12]} 24. Qa3 {[%clk 0:01:30]}  Qc7 {[%clk 0:01:11]} 25. Qxa2 {[%clk 0:01:29]}  Bb7 {[%clk 0:01:11]} 26. hxg6 {[%clk 0:00:53]}  hxg6 {[%clk 0:01:12]} 27. Rxh8 {[%clk 0:00:53]}  Kxh8 {[%clk 0:01:13]} 28. Nc1 {[%clk 0:00:50]}  Qb8 {[%clk 0:01:06]} 29. Nb3 {[%clk 0:00:49]}  Kg7 {[%clk 0:01:04]} 30. Qa1 {[%clk 0:00:46]}  Qa8 {[%clk 0:01:02]} 31. Qh1 {[%clk 0:00:43]}  Qh8 {[%clk 0:00:59]} 32. Qg2 {[%clk 0:00:25]}  Bd8 {[%clk 0:00:53]} 33. Kc2 {[%clk 0:00:23]}  Bc7 {[%clk 0:00:49]} 34. Kb1 {[%clk 0:00:23]}  Qa8 {[%clk 0:00:47]} 35. Qh2 {[%clk 0:00:21]}  Qh8 {[%clk 0:00:46]} 36. Qg2 {[%clk 0:00:21]}  Qh5 {[%clk 0:00:44]} 37. Be2 {[%clk 0:00:20]}  Qh8 {[%clk 0:00:42]} 38. Ne1 {[%clk 0:00:21]}  Qa8 {[%clk 0:00:31]} 39. Nc2 {[%clk 0:00:21]}  Qa4 {[%clk 0:00:30]} 40. Kb2 {[%clk 0:00:20]}  Qa8 {[%clk 0:00:25]} 41. Nb4 {[%clk 0:00:21]}  Qh8 {[%clk 0:00:21]} 42. Nc1 {[%clk 0:00:17]}  Nb8 {[%clk 0:00:20]} 43. Ncd3 {[%clk 0:00:17]}  Nd7 {[%clk 0:00:20]} 44. Qg1 {[%clk 0:00:16]}  Nb8 {[%clk 0:00:18]} 45. Bf3 {[%clk 0:00:16]}  Nd7 {[%clk 0:00:18]} 46. Kc2 {[%clk 0:00:16]}  Nb8 {[%clk 0:00:17]} 47. Qa1 {[%clk 0:00:13]}  Qh2+ {[%clk 0:00:16]} 48. Kc3 {[%clk 0:00:13]}  Qg3 {[%clk 0:00:14]} 49. Qh1 {[%clk 0:00:14]}  Na6 {[%clk 0:00:07]} 50. Qh6+ {[%clk 0:00:14]}  Kg8 {[%clk 0:00:05]} 51. Qxg6+ {[%clk 0:00:14]}  Kf8 {[%clk 0:00:05]} 52. Qf6+ {[%clk 0:00:14]}  Ke8 {[%clk 0:00:05]} 53. Bh5+ {[%clk 0:00:11]}  Kd7 {[%clk 0:00:04]} 54. Qf7+ {[%clk 0:00:11]}  Kc8 {[%clk 0:00:04]} 55. Qxe6+ {[%clk 0:00:12]}  Kb8 {[%clk 0:00:05]} 56. Nxa6+ {[%clk 0:00:12]}  Bxa6 {[%clk 0:00:05]} 57. Qxc6 {[%clk 0:00:07]}  b4+ {[%clk 0:00:02]} 58. Nxb4 {[%clk 0:00:06]}  Qxe3+ {[%clk 0:00:01]} 59. Kc2 {[%clk 0:00:07]}  Bc4 {[%clk 0:00:01]} 60. Qe8+ {[%clk 0:00:06]}  Qxe8 {[%clk 0:00:02]} 61. Bxe8 {[%clk 0:00:07]}  Bxf4 {[%clk 0:00:02]} 62. g6 {[%clk 0:00:07]}  Bh6 {[%clk 0:00:02]} 63. Nc6+ {[%clk 0:00:07]}  Kc7 {[%clk 0:00:03]} 64. Ne5 {[%clk 0:00:08]}  Bb5 {[%clk 0:00:03]} 65. Bxb5 {[%clk 0:00:08]} 1-0


[Site "https://www.chess.com"]

[Event "Titled Tuesday Blitz March 29 Late 2022"]
[White "Sliwicki, Damian"]
[Black "Bryakin, Mikhail"]
[WhiteFideId "1127128"]
[BlackFideId "4165314"]
[WhiteElo "2067"]
[BlackElo "2417"]
[Result "1/2-1/2"]
[Round "04"]
[TimeControl "180+1"]
[Date "2022.03.30"]
[WhiteClock "0:00:03"]
[BlackClock "0:02:31"]

1. e4 {[%clk 0:02:54]}  c5 {[%clk 0:02:58]} 2. Nf3 {[%clk 0:02:44]}  e6 {[%clk 0:02:58]} 3. d4 {[%clk 0:02:43]}  cxd4 {[%clk 0:02:59]} 4. Nxd4 {[%clk 0:02:43]}  a6 {[%clk 0:02:59]} 5. Nc3 {[%clk 0:02:41]}  Nc6 {[%clk 0:02:59]} 6. g3 {[%clk 0:02:40]}  Bc5 {[%clk 0:02:58]} 7. Nb3 {[%clk 0:02:39]}  Ba7 {[%clk 0:02:58]} 8. Bg2 {[%clk 0:02:28]}  Nge7 {[%clk 0:02:57]} 9. O-O {[%clk 0:02:22]}  O-O {[%clk 0:02:58]} 10. Qh5 {[%clk 0:02:08]}  Ng6 {[%clk 0:02:55]} 11. Bg5 {[%clk 0:01:56]}  f6 {[%clk 0:02:51]} 12. Bd2 {[%clk 0:01:38]}  b5 {[%clk 0:02:51]} 13. Rad1 {[%clk 0:01:33]}  Qe7 {[%clk 0:02:51]} 14. Rfe1 {[%clk 0:01:30]}  Bb7 {[%clk 0:02:51]} 15. Be3 {[%clk 0:01:12]}  Bxe3 {[%clk 0:02:49]} 16. Rxe3 {[%clk 0:01:12]}  Nce5 {[%clk 0:02:49]} 17. Na5 {[%clk 0:00:51]}  Bc6 {[%clk 0:02:39]} 18. f4 {[%clk 0:00:39]}  Nc4 {[%clk 0:02:35]} 19. Nxc4 {[%clk 0:00:38]}  bxc4 {[%clk 0:02:36]} 20. Kh1 {[%clk 0:00:27]}  Qb4 {[%clk 0:02:34]} 21. f5 {[%clk 0:00:20]}  Ne5 {[%clk 0:02:34]} 22. b3 {[%clk 0:00:16]}  Rab8 {[%clk 0:02:30]} 23. g4 {[%clk 0:00:14]}  Qc5 {[%clk 0:02:30]} 24. Rh3 {[%clk 0:00:13]}  h6 {[%clk 0:02:30]} 25. Ne2 {[%clk 0:00:09]}  cxb3 {[%clk 0:02:30]} 26. cxb3 {[%clk 0:00:09]}  Rb4 {[%clk 0:02:30]} 27. Nf4 {[%clk 0:00:07]}  Rxe4 {[%clk 0:02:29]} 28. Ng6 {[%clk 0:00:03]}  Re8 {[%clk 0:02:29]} 29. Nxe5 {[%clk 0:00:03]}  Rxe5 {[%clk 0:02:29]} 30. Qxe8+ {[%clk 0:00:03]}  Kh7 {[%clk 0:02:30]} 31. Qg6+ {[%clk 0:00:04]}  Kg8 {[%clk 0:02:30]} 32. Qe8+ {[%clk 0:00:04]}  Kh7 {[%clk 0:02:31]} 33. Qg6+ {[%clk 0:00:03]}  Kg8 {[%clk 0:02:31]} 34. Qe8+ {[%clk 0:00:03]} 1/2-1/2


[Site "https://www.chess.com"]

[Event "Titled Tuesday Blitz March 29 Late 2022"]
[White "Smirnov, Pavel"]
[Black "Reprintsev, Alexander"]
[WhiteFideId "4123425"]
[BlackFideId "14100541"]
[WhiteElo "2545"]
[BlackElo "2108"]
[Result "1/2-1/2"]
[Round "04"]
[TimeControl "180+1"]
[Date "2022.03.29"]
[WhiteClock "0:01:49"]
[BlackClock "0:01:02"]

1. d4 {[%clk 0:03:00]}  d5 {[%clk 0:02:56]} 2. c4 {[%clk 0:03:00]}  e5 {[%clk 0:02:55]} 3. dxe5 {[%clk 0:03:00]}  d4 {[%clk 0:02:55]} 4. Nf3 {[%clk 0:03:01]}  Nc6 {[%clk 0:02:55]} 5. Nbd2 {[%clk 0:03:01]}  a5 {[%clk 0:02:54]} 6. g3 {[%clk 0:03:00]}  Nge7 {[%clk 0:02:54]} 7. Bg2 {[%clk 0:02:59]}  Nf5 {[%clk 0:02:49]} 8. O-O {[%clk 0:02:58]}  h5 {[%clk 0:02:45]} 9. Ne4 {[%clk 0:02:57]}  h4 {[%clk 0:02:42]} 10. Bf4 {[%clk 0:02:53]}  Be7 {[%clk 0:02:39]} 11. g4 {[%clk 0:02:50]}  h3 {[%clk 0:02:39]} 12. Bh1 {[%clk 0:02:47]}  Nh4 {[%clk 0:02:39]} 13. Nxh4 {[%clk 0:02:43]}  Rxh4 {[%clk 0:02:38]} 14. f3 {[%clk 0:02:40]}  Bf5 {[%clk 0:01:32]} 15. Bg3 {[%clk 0:02:35]}  Bxe4 {[%clk 0:01:32]} 16. Bxh4 {[%clk 0:02:33]}  Bxh4 {[%clk 0:01:29]} 17. fxe4 {[%clk 0:02:33]}  Qg5 {[%clk 0:01:22]} 18. Bf3 {[%clk 0:02:32]}  O-O-O {[%clk 0:01:19]} 19. Qc1 {[%clk 0:02:29]}  Qxe5 {[%clk 0:01:17]} 20. Kh1 {[%clk 0:02:26]}  Bg5 {[%clk 0:01:18]} 21. Qe1 {[%clk 0:02:25]}  Bf4 {[%clk 0:01:17]} 22. Qf2 {[%clk 0:02:24]}  g5 {[%clk 0:01:11]} 23. Rad1 {[%clk 0:02:22]}  Be3 {[%clk 0:01:05]} 24. Qg3 {[%clk 0:02:20]}  Bf4 {[%clk 0:01:06]} 25. Qf2 {[%clk 0:02:20]}  Be3 {[%clk 0:01:06]} 26. Qe1 {[%clk 0:02:20]}  Bf4 {[%clk 0:01:05]} 27. Rf2 {[%clk 0:01:56]}  Be3 {[%clk 0:01:04]} 28. Rf1 {[%clk 0:01:56]}  Bf4 {[%clk 0:01:02]} 29. Qf2 {[%clk 0:01:49]} 1/2-1/2


[Site "https://www.chess.com"]